[Event "GCT Superbet Rapid Poland 2025"]
[Site "Warsaw"]
[Date "2025.04.27"]
[Round "5.3"]
[White "Aravindh, Chithambaram VR."]
[Black "Fedoseev, Vladimir"]
[Result "1/2-1/2"]
[ECO "D32"]
[WhiteElo "2749"]
[BlackElo "2739"]
[Annotator "TA"]
[PlyCount "94"]
[EventDate "2025.??.??"]
[EventType "rapid"]
[TimeControl "1500+10"]

{[%evp 15,94,12,0,4,2,0,8,0,0,-10,0,0,6,0,6,4,27,-18,0,0,0,0,0,0,14,0,5,0,45,0,0,16,22,0,15,39,30,0,6,3,6,0,0,0,0,0,0,0,0,-89,-93,-89,-80,-94,-81,-81,-56,-61,0,-27,-30,-30,0,-86,0,0,0,0,0,0,0,0,22,0,0,0,16,0,0,0,17]} 1. d4 {[%emt 0:00:05]} d5 {[%emt 0:00:07]} 2. c4 {[%emt 0:00:04]} e6 {[%emt 0:00:02]} 3. Nc3 {[%emt 0:00:05]} a6 {[%emt 0:00:16]} 4. cxd5 {[%emt 0:00:23]} exd5 {[%emt 0:00:01]} 5. Bf4 {[%emt 0:00:21]} Nf6 {[%emt 0:00:08]} 6. e3 {[%emt 0:00:10]} c5 {[%emt 0:00:08]} 7. dxc5 {[%emt 0:03:58]} Bxc5 {[%emt 0:00:10]} 8. Nf3 {[%emt 0:00:06]} Nc6 {[%emt 0:00:38][%cal Bb8c6,Bc6a5,Ba5c4][%mdl 32]} 9. Be2 {[%emt 0:00:09] D32: Tarrasch Defence: Sidelines and lines without g3.} O-O {[%emt 0:02:04]} 10. O-O {[%emt 0:00:04]} Be6 {[%emt 0:04:39]} ({RR} 10... Re8 11. Rc1 h6 12. Qc2 Ba7 13. Rfd1 Be6 14. Ne5 Rc8 15. Bf3 Qa5 16. Qd3 Ne7 17. h3 Red8 18. Qe2 b5 19. a3 d4 20. exd4 Rxd4 21. Nd3 Rdd8 22. Nb4 Ng6 23. Be3 Rxd1+ 24. Rxd1 Bb8 25. Nc6 {Xiong,J (2710)-Mamedyarov,S (2782) Saint Louis 2021 ½-½ (34)}) 11. Na4 $146 {[%emt 0:04:59]} (11. Ne5 Bd6 12. Nxc6 bxc6 13. Na4 c5 14. Bxd6 Qxd6 15. Rc1 Rfc8 16. Qd2 Rab8 17. b3 {1-0 Nakamura,H (2736)-Le,Q (2709) NIC Classic KO rapid 2021 (1.11)}) ({RR} 11. Rc1 Ba7 12. Ne5 Ne7 13. Bd3 Rc8 14. Ne2 Qa5 15. a3 Rxc1 16. Qxc1 Rc8 17. Qe1 Qc5 18. Qd2 Ne4 19. Bxe4 dxe4 20. Nd4 Qd5 21. Qb4 Bc5 22. Qa4 f6 23. b4 fxe5 24. bxc5 exf4 25. Rb1 Qxc5 {Kirillov,D (2200)-Tristan,L (2544) chess.com INT 2023 0-1 (33)}) ({RR} 11. Qd2 Rc8 12. Rfd1 Qe7 13. a3 Rfd8 14. h3 h6 15. Nd4 Ba7 16. Bf3 Na5 17. Qe1 Nc4 18. b3 Nxa3 19. Ra2 Qb4 20. Nxe6 fxe6 21. Rda1 Qxc3 22. Qxc3 Rxc3 23. Rxa3 Bb8 24. Bxb8 Rxb8 25. b4 Rxa3 {Qin,K (2017)-Tristan,L (2542) chess.com INT 2025 0-1 (33)}) ({RR} 11. Ne5 Bd6 12. Nxc6 bxc6 13. Bxd6 Qxd6 14. Na4 c5 15. Rc1 Rfc8 16. Qd3 Rc6 17. Rfd1 Rac8 18. h3 Nd7 19. Nc3 Nf6 20. Bf3 Qb8 21. Nxd5 Nxd5 22. Bxd5 Rd6 23. Qc4 Rcd8 24. e4 Qxb2 25. Qxc5 g6 {Vaisser,A (2477)-Knaak,R (2479) Acqui Terme 2022 ½-½ (41)}) 11... Ba7 {[%emt 0:00:00]} 12. Ne5 {[%emt 0:00:04]} Na5 {[%emt 0:01:59]} 13. b4 {[%emt 0:00:58]} Nc4 {[%emt 0:00:00][%cal Og7g5]} 14. Nc5 {[%emt 0:00:03]} Qc8 {[%emt 0:03:34]} 15. a4 {[%emt 0:01:19]} Rd8 {[%emt 0:00:00]} 16. Nb3 {[%emt 0:03:55]} Ne4 {[%emt 0:00:34] [#]} 17. Rc1 {[%emt 0:00:02]} b5 {[%emt 0:00:31]} 18. Nd4 {[%emt 0:00:33]} Bxd4 {[%emt 0:00:28]} 19. exd4 {[%emt 0:01:19]} (19. Qxd4 Ned2 20. Bg3 (20. Rfd1 $2 Nb3 $19) 20... Nxf1 (20... bxa4 $2 21. Qa1 $19) 21. Bxf1 bxa4 $19) 19... Qb7 {[%emt 0:00:31]} 20. Nd3 {[%emt 0:00:29]} Qa7 {[%emt 0:02:03]} 21. Nc5 {[%emt 0:01:59]} Bf5 {[%emt 0:01:36]} 22. Bg4 {[%emt 0:04:03]} Bxg4 {[%emt 0:01:32]} 23. Qxg4 {[%emt 0:00:02]} Re8 {[%emt 0:01:25]} 24. Rfe1 {[%emt 0:00:50]} Qb6 {[%emt 0:00:50]} 25. Qf5 {[%emt 0:01:28]} Rad8 {[%emt 0:03:28]} 26. axb5 {[%emt 0:00:40][%cal Rc5e4]} Qxb5 {[%emt 0:01:02]} 27. Bc7 {[%emt 0:00:13]} g6 {[%emt 0:00:05]} 28. Qf4 {[%emt 0:00:13]} Rc8 {[%emt 0:00:02][%cal Oe4c3]} 29. h4 {[%emt 0:00:44]} Qxb4 {[%emt 0:00:51]} 30. Nxe4 {[%emt 0:00:11]} dxe4 {[%emt 0:00:02]} 31. d5 {[%emt 0:00:05][%cal Od5d6] [#]} Nb2 $1 {[%emt 0:00:28] Strongly threatening ...Nd3.} 32. d6 {[%emt 0:00:25]} (32. Bd6 $11 Nd3 33. Bxb4 Nxf4 34. Rxc8 Rxc8 35. d6) 32... Nd3 $1 $17 {[%emt 0:00:06][%csl Bc1,Be1,Bf4]} 33. Qe3 {[%emt 0:00:13][%cal Od6d7]} Nxe1 {[%emt 0:00:26]} 34. Rxe1 {[%emt 0:00:02]} Qb5 {[%emt 0:00:17]} 35. h5 {[%emt 0:00:12]} Qd7 {[%emt 0:00:22]} (35... Qxh5 $2 36. d7 $18) 36. h6 {[%emt 0:00:19]} Rxc7 {[%emt 0:00:21]} ({Black should play} 36... Re6 $15) 37. dxc7 {[%emt 0:00:00]} (37. Qf4 $5 f6 38. dxc7 $18) 37... Qxc7 $15 {[%emt 0:00:01][%mdl 4096] Endgame KQR-KQR. Black is two pawns up.} 38. Qd4 {[%emt 0:00:07]} Re5 {[%emt 0:00:24]} 39. Rb1 {[%emt 0:00:34]} (39. Qb2 $11 {remains equal.} Qd6 40. Rc1) 39... f6 {[%emt 0:00:01]} (39... Kf8 $17) 40. Qe3 $11 {[%emt 0:00:12] The position is equal.} Kf7 {[%emt 0:00:16]} 41. Qb3+ {[%emt 0:00:01]} Re6 {[%emt 0:00:02]} 42. Qd5 {[%emt 0:00:03] Black must now prevent Rb7.} Qc6 {[%emt 0:00:17]} 43. Rb7+ {[%emt 0:00:18]} Ke8 {[%emt 0:00:01]} 44. Rb8+ {[%emt 0:00:11][%mdl 1024] White has compensation.} Kf7 {[%emt 0:00:00]} 45. Rb7+ {[%emt 0:00:11]} Ke8 {[%emt 0:00:01]} 46. Rb8+ {[%emt 0:00:14]} Kf7 {[%emt 0:00:01]} 47. Rb7+ {[%emt 0:00:08]} Ke8 {[%emt 0:00:02] Weighted Error Value: White=0.15 (very precise) /Black=0.11 (very precise) Mistake: 	White=2 	Black=2 Inaccurate: 	White=4 	Black=2 OK: 	White=16 	Black=14 Best: 	White=1 	Black=3 Strong: 	--- 	Black=1} 1/2-1/2

[Event "GCT Superbet Rapid Poland 2025"]
[Site "Warsaw"]
[Date "2025.04.27"]
[Round "5.4"]
[White "Praggnanandhaa R"]
[Black "Aronian, Levon"]
[Result "1/2-1/2"]
[ECO "D76"]
[WhiteElo "2758"]
[BlackElo "2747"]
[Annotator "TA"]
[PlyCount "105"]
[EventDate "2025.??.??"]
[EventType "rapid"]
[TimeControl "1500+10"]

{[%evp 18,105,22,6,21,3,4,2,8,0,0,-6,9,0,33,29,34,27,32,17,25,0,0,0,0,0,0,0,30,33,36,48,38,31,20,8,8,8,8,8,8,0,16,0,8,6,81,74,63,65,61,54,72,-4,-8,0,33,46,47,47,56,56,116,56,87,12,16,12,12,12,12,0,2,0,5,0,0,0,0,0,0,0,0,0,0,0,0,0,0,0]} 1. Nf3 {[%emt 0:00:05]} d5 {[%emt 0:00:04]} 2. g3 {[%emt 0:00:02]} g6 {[%emt 0:00:09]} 3. Bg2 {[%emt 0:00:36]} Bg7 {[%emt 0:00:02]} 4. d4 {[%emt 0:00:02]} Nf6 {[%emt 0:00:02]} 5. c4 {[%emt 0:00:02]} O-O {[%emt 0:00:08]} 6. cxd5 {[%emt 0:00:26]} Nxd5 {[%emt 0:00:02]} 7. O-O {[%emt 0:00:06]} Nc6 {[%emt 0:00:02]} 8. Nc3 {[%emt 0:00:07]} Nb6 {[%emt 0:00:02]} 9. e3 $1 {[%emt 0:00:04] 9.e3 scores better than 9.d5.} Re8 {[%emt 0:00:12]} 10. h3 {[%emt 0:02:12]} a5 {[%emt 0:00:37] D76: Fianchetto Grünfeld: Main Line with 7...Nb6.} 11. Rb1 {[%emt 0:03:47]} ({RR} 11. Qc2 e5 12. Nxe5 Nxe5 13. dxe5 Bxe5 14. e4 Qe7 15. Kh2 Bd7 16. Bh6 Qc5 17. Rac1 Bc6 18. Nd5 Qxc2 19. Rxc2 Bxd5 20. exd5 Bd6 21. Rfc1 Rad8 22. Bg5 Rc8 23. Bf4 Bxf4 24. gxf4 Rcd8 25. Rxc7 Nxd5 {Giri,A (2727)-Topalov,V (2771) Zug 2013 ½-½ (36)}) 11... a4 {[%emt 0:00:29]} 12. Re1 {[%emt 0:00:43]} h6 {[%emt 0:00:34]} ({RR} 12... Ra5 13. Bd2 e5 14. Ne2 Ra6 15. Bc3 Bf5 16. Rc1 Be4 17. dxe5 Nd5 18. Bd4 Ncb4 19. Nf4 Nxa2 20. Nxd5 Nxc1 21. Nb4 Nb3 22. Nxa6 bxa6 23. Bc3 Qa8 24. Qe2 Rd8 25. Nh4 Bxg2 26. Nxg2 Qd5 27. Nf4 {Svane,R (2633)-Grigorjev,I (2433) chess.com INT 2024 0-1 (40)}) 13. Nh2 $146 {[%emt 0:03:26]} ({RR} 13. Kh2 Be6 14. b3 axb3 15. axb3 f5 16. Bb2 Nd5 17. Rc1 Nxc3 18. Rxc3 Bd5 19. Rc5 e6 20. Nh4 Bf8 21. Bxd5 exd5 22. Rb5 b6 23. Nxg6 Na7 24. Nxf8 Nxb5 25. Ng6 Nd6 26. Qf3 c6 27. Rc1 Ra2 {Wulf von Moers,J (2180)-Houska,J (2206) Prague 2016 ½-½}) 13... Bd7 $146 {[%emt 0:03:44]} (13... Be6 14. Nf3 Qd7 15. Kh2 Red8 16. b3 axb3 17. axb3 Nd5 18. Bb2 Nxc3 19. Bxc3 Na7 {½-½ Szymanski,R (2363)-Lubienski,A (2266) POL-ch66 sf email 2021}) 14. Nf1 {[%emt 0:02:40]} Qc8 {[%emt 0:00:57]} 15. Kh2 {[%emt 0:00:29]} Na5 {[%emt 0:00:17]} 16. e4 {[%emt 0:01:30]} c5 {[%emt 0:00:10]} 17. dxc5 {[%emt 0:00:42]} Nbc4 {[%emt 0:00:44] Black sacrificed a pawn} 18. Nxa4 {[%emt 0:02:43]} Rd8 {[%emt 0:01:03]} 19. b4 {[%emt 0:01:21]} Bb5 {[%emt 0:02:57]} (19... Bxh3 20. Qc2 Bxg2 21. Kxg2 $11) 20. Qc2 {[%emt 0:01:22]} Nc6 {[%emt 0:00:01][%cal Ba5c6,Bc6d4,Bd4e2,Be2c3][%mdl 32]} 21. Nc3 {[%emt 0:00:54]} Nd4 {[%emt 0:00:02]} 22. Qd1 {[%emt 0:00:07]} Ne2 {[%emt 0:00:01]} 23. Nd5 {[%emt 0:00:49]} Nc3 {[%emt 0:01:34] aiming for ...Rxd5.} 24. Qb3 {[%emt 0:01:52]} Rxd5 {[%emt 0:01:20]} 25. exd5 {[%emt 0:00:01][%cal Oc1b2]} Qf5 $1 {[%emt 0:00:05] [#]} 26. Rb2 {[%emt 0:01:17]} Nxb2 {[%emt 0:00:22]} 27. Bxb2 {[%emt 0:00:01]} Ba4 $1 $132 {[%emt 0:05:15][%mdl 2048] Black has counterplay} 28. Qc4 {[%emt 0:00:03]} (28. Qa3 $5 Nb5 $8 (28... Qxf2 $2 29. Bxc3 Ra6 30. Qc1 $18) 29. Qf3 Qxf3 (29... Bxb2 30. Qxf5 gxf5 31. Rxe7 $11) 30. Bxf3 Bxb2 31. Rxe7 $11) 28... Bb5 {[%emt 0:00:01]} 29. Qb3 {[%emt 0:00:01]} Ba4 $1 {[%emt 0:00:01]} 30. Qc4 {[%emt 0:00:17]} (30. Qa3 $5 Nb5 $8 (30... Qxf2 $2 31. Bxc3 Ra6 32. Qc1 $18) 31. Qf3 Qxf3 (31... Bxb2 32. Qxf5 gxf5 33. Rxe7 $11) 32. Bxf3 Bxb2 33. Rxe7 $15) 30... Bb5 {[%emt 0:00:01]} 31. Qf4 {[%emt 0:00:22]} Rxa2 {[%emt 0:00:03]} (31... Qxf4 $11 {remains equal.} 32. gxf4 Rxa2 33. Bxc3 Bxc3 34. Rxe7 Bxf1 35. Bxf1 Bxb4) 32. Qxf5 $16 {[%emt 0:00:55]} gxf5 {[%emt 0:00:01]} 33. Bxc3 {[%emt 0:00:29]} Bxc3 {[%emt 0:00:02]} 34. Rc1 {[%emt 0:00:46]} Bxb4 {[%emt 0:00:51][%cal Ob4a3] [#]} 35. Kg1 {[%emt 0:00:27]} (35. Rb1 Bxf1 36. Rxb4 Rxf2) (35. c6 $1 $16 {[%cal Rc6b7]} bxc6 (35... Rxf2 $2 36. cxb7 Bd6 37. Kg1 $18) 36. dxc6) 35... Ba3 $11 {[%emt 0:01:16] This pair of bishops is nice.} 36. Rc3 {[%emt 0:00:02]} Bb4 {[%emt 0:00:34]} 37. Rb3 {[%emt 0:00:02]} Bxf1 {[%emt 0:00:04]} 38. Rxb4 {[%emt 0:00:06]} Bxg2 {[%emt 0:00:01]} 39. Kxg2 $14 {[%emt 0:00:02][%mdl 4096] Endgame KR-KR} Rc2 {[%emt 0:00:02]} ({Black should try} 39... Rd2 $14) 40. Rb5 {[%emt 0:00:12]} ({Don't play} 40. Rxb7 $6 Rxc5 41. Rxe7 Rxd5 $11) (40. d6 $16 {aiming for d7.} Rxc5 41. dxe7) 40... Rc3 {[%emt 0:01:31]} 41. Kf1 {[%emt 0:00:26]} (41. Rxb7 Rxc5 42. Rxe7 Rxd5 $15) (41. d6 $16 exd6 42. cxd6 (42. Rxb7 dxc5 43. Rd7 Kg7 $11)) 41... Rd3 $11 {[%emt 0:00:14] The position is equal.} 42. Rxb7 {[%emt 0:00:14]} Rxd5 {[%emt 0:00:01]} 43. c6 {[%emt 0:00:00]} Rc5 {[%emt 0:00:01]} 44. Rc7 {[%emt 0:00:23]} (44. Rxe7 Rxc6 45. Re5 Rf6 46. Ra5) 44... Kg7 {[%emt 0:00:16]} 45. Ke2 {[%emt 0:00:06][%cal Oe2e3]} (45. Rxe7 Rxc6 46. Kg2 Rc4 47. Ra7) 45... h5 {[%emt 0:01:16]} 46. Kd3 {[%emt 0:00:14][%cal Od3d4]} (46. Rxe7 {simplifies} Rxc6 47. Kf3 Rc4 48. Ra7) 46... e5 {[%emt 0:00:26]} 47. Rc8 {[%emt 0:00:02]} Rc1 {[%emt 0:00:14]} 48. c7 {[%emt 0:00:18]} Rc6 {[%emt 0:00:14]} 49. f3 {[%emt 0:00:08]} Rc1 {[%emt 0:00:12]} 50. Kd2 {[%emt 0:00:11]} Rc6 {[%emt 0:00:03]} 51. Kd3 {[%emt 0:00:11]} Rc1 {[%emt 0:00:04]} 52. Kd2 {[%emt 0:00:00]} Rc6 {[%emt 0:00:02]} 53. Kd3 {[%emt 0:00:01] Weighted Error Value: White=0.11 (very precise) /Black=0.09 (flawless) Mistake: 	White=3 	Black=2 Inaccurate: 	--- 	Black=4 OK: 	White=13 	Black=16 Best: 	White=2 	Black=6 Strong: 	--- 	Black=3} 1/2-1/2

[Event "GCT Superbet Rapid Poland 2025"]
[Site "Warsaw"]
[Date "2025.04.27"]
[Round "5.5"]
[White "Duda, Jan-Krzysztof"]
[Black "Firouzja, Alireza"]
[Result "1/2-1/2"]
[ECO "E04"]
[WhiteElo "2739"]
[BlackElo "2757"]
[Annotator "TA"]
[PlyCount "162"]
[EventDate "2025.??.??"]
[EventType "rapid"]
[TimeControl "1500+10"]

{[%evp 22,162,21,7,41,35,38,14,21,18,31,33,30,33,39,38,31,29,27,27,42,45,44,44,42,47,38,29,65,65,65,63,62,56,66,39,61,37,41,37,37,37,37,37,37,31,49,0,46,34,53,0,0,0,7,0,0,0,8,0,0,0,0,0,0,0,0,0,0,0,0,0,0,0,0,0,0,0,0,0,0,0,0,0,0,0,0,0,0,0,0,0,0,0,0,0,0,0,0,0,0,0,0,0,0,0,0,0,0,0,0,0,0,0,0,0,0,0,0,0,0,0,0,0,0,0,0,0,0,0,0,0,0,0,0,0,0,0,0,0,0,0,0]} 1. Nf3 {[%emt 0:00:02]} d5 {[%emt 0:00:02]} 2. c4 {[%emt 0:00:02]} e6 {[%emt 0:00:29]} 3. d4 {[%emt 0:00:05]} Nf6 {[%emt 0:00:04]} 4. g3 {[%emt 0:00:13]} dxc4 {[%emt 0:00:15]} 5. Bg2 {[%emt 0:00:02]} c5 {[%emt 0:00:01]} 6. O-O {[%emt 0:00:18]} Nc6 {[%emt 0:00:03]} 7. Qa4 {[%emt 0:00:34]} Bd7 {[%emt 0:00:05]} 8. Qxc4 {[%emt 0:00:07]} cxd4 {[%emt 0:01:22]} 9. Nxd4 {[%emt 0:00:02]} Rc8 {[%emt 0:00:05]} 10. Nc3 {[%emt 0:00:08]} Nxd4 {[%emt 0:00:05]} 11. Qxd4 {[%emt 0:00:01]} Bc5 {[%emt 0:00:02]} 12. Qh4 {[%emt 0:00:06]} Bc6 {[%emt 0:00:06] E04: Open Catalan: 5 Nf3.} 13. Bxc6+ {[%emt 0:00:21]} Rxc6 {[%emt 0:00:01]} 14. Bg5 {[%emt 0:00:04] [#]} Be7 {[%emt 0:04:30]} 15. Rad1 {[%emt 0:00:41]} Qa5 {[%emt 0:01:45]} 16. Ne4 {[%emt 0:00:12]} Qe5 {[%emt 0:00:41]} (16... Nxe4 $6 17. Bxe7 g5 18. Qxe4 $16) 17. Nxf6+ {[%emt 0:00:20]} Bxf6 {[%emt 0:00:05]} ({Don't play} 17... gxf6 18. Be3 $16) 18. Bxf6 {[%emt 0:00:03]} Qxf6 {[%emt 0:00:09]} 19. Qxf6 {[%emt 0:00:04]} gxf6 {[%emt 0:00:01]} 20. Rc1 {[%emt 0:00:02]} Rxc1 {[%emt 0:00:30]} 21. Rxc1 $11 {[%emt 0:00:01][%mdl 4096] Endgame KR-KR} Kd7 {[%emt 0:00:02] Against Rc8} 22. e4 $146 {[%emt 0:00:23]} ({RR} 22. Kg2 Rg8 23. Rc4 Rg5 24. Rh4 h5 25. Rf4 Ke7 26. Kf3 Rc5 27. Ke3 a5 28. Kd3 b5 29. h3 Rd5+ 30. Kc2 Re5 31. Kd3 Rd5+ 32. Rd4 Rf5 33. Ke3 Re5+ 34. Kd2 Rf5 35. f4 Rc5 36. b4 axb4 {Kobo,O (2539)-Samunenkov,I (2523) Czech Republic CZE 2025 ½-½ (43)}) ({RR} 22. Rc4 b6 23. Kg2 Rg8 24. Ra4 a5 25. Rh4 Rg7 26. e4 Ke7 27. Rh5 Rg5 28. Rxh7 Re5 29. Kf3 Kf8 30. Rh8+ Kg7 31. Rb8 Rb5 32. b3 Rb4 33. Rc8 b5 34. Ke3 f5 35. exf5 exf5 36. f3 a4 {Nguyen,T (2618)-Abasov,N (2679) Douglas IOM 2023 1-0 (39)}) ({RR} 22. Rc4 f5 23. e4 fxe4 24. Rxe4 Rg8 25. Rh4 Rg7 26. Kg2 f6 27. Kf3 Ke8 28. Ke3 Rc7 29. Rh6 Rf7 30. g4 Ke7 31. h4 Kd6 32. Kd4 b5 33. f4 a5 34. Ke4 a4 35. f5 exf5+ 36. Kxf5 Ke7 {Gozzoli,Y (2575)-Delchev,A (2513) La Roche-sur-Yon FRA 2023 1-0 (56)}) 22... Rg8 {[%emt 0:00:15]} 23. h4 {[%emt 0:01:07]} Rg4 {[%emt 0:00:09]} 24. Re1 {[%emt 0:00:20]} b5 {[%emt 0:02:01]} 25. Kg2 {[%emt 0:00:18]} a5 {[%emt 0:01:08]} 26. Kf3 {[%emt 0:00:15]} Rg8 {[%emt 0:00:06]} 27. Rc1 {[%emt 0:00:43]} Kd6 {[%emt 0:00:20] Prevents Rc5.} 28. g4 {[%emt 0:00:53]} h6 {[%emt 0:02:11]} 29. Kf4 {[%emt 0:00:06]} a4 {[%emt 0:04:07]} 30. f3 {[%emt 0:00:31]} Rh8 {[%emt 0:00:47]} 31. Rc2 {[%emt 0:01:42]} Rg8 {[%emt 0:00:10]} 32. Rc3 {[%emt 0:05:10]} Ra8 {[%emt 0:01:34]} 33. Ke3 {[%emt 0:02:41]} Rh8 $146 {[%emt 0:00:08]} (33... Rb8 34. f4 Rg8 35. Kf3 Rb8 {½-½ Lazavik,D (2560)-Firouzja,A (2777) AI Cup Div 1 L rapid 2023 (1.2)}) 34. Kf4 {[%emt 0:02:01]} Ra8 $1 {[%emt 0:00:05]} 35. Kg3 {[%emt 0:00:04]} Rg8 {[%emt 0:00:39]} 36. b4 {[%emt 0:03:52]} (36. Rc2 $14) 36... axb3 {[%emt 0:00:10] The position is equal.} 37. Rxb3 {[%emt 0:00:02]} Kc5 {[%emt 0:00:55]} 38. Ra3 {[%emt 0:00:19]} Kb6 {[%emt 0:01:22] Repels Ra7} 39. Kf4 {[%emt 0:00:13]} Rd8 {[%emt 0:01:41]} 40. Rc3 {[%emt 0:02:13]} Ra8 {[%emt 0:01:56]} 41. a3 {[%emt 0:00:16]} Rd8 {[%emt 0:00:08]} 42. g5 {[%emt 0:00:51]} hxg5+ {[%emt 0:00:07]} 43. hxg5 {[%emt 0:00:01]} fxg5+ {[%emt 0:00:22]} 44. Kxg5 {[%emt 0:00:02]} Rd7 {[%emt 0:00:27]} 45. Kf6 {[%emt 0:00:14]} Ka5 {[%emt 0:00:11]} 46. f4 {[%emt 0:00:30]} Ka4 {[%emt 0:00:21]} 47. f5 {[%emt 0:01:21]} exf5 {[%emt 0:00:40]} 48. exf5 {[%emt 0:00:02]} Ra7 {[%emt 0:00:32]} 49. Re3 {[%emt 0:00:36]} Ra5 $1 {[%emt 0:00:12]} 50. Rd3 {[%emt 0:00:50]} Ra7 {[%emt 0:00:07]} 51. Re3 {[%emt 0:02:21]} Ra5 $1 {[%emt 0:00:02]} 52. Rh3 {[%emt 0:00:13]} (52. Kxf7 $5 b4 $8 53. f6 bxa3 54. Re1 $11) 52... Ra7 {[%emt 0:00:05]} 53. Kg7 {[%emt 0:00:09]} Ka5 $1 {[%emt 0:00:05]} 54. f6 {[%emt 0:00:05]} Kb6 {[%emt 0:00:11]} 55. Rc3 $1 {[%emt 0:00:01]} Rd7 {[%emt 0:00:25]} 56. Kf8 $1 {[%emt 0:00:08]} Rb7 {[%emt 0:00:11]} 57. Ke8 {[%emt 0:00:13]} Ra7 {[%emt 0:00:03]} 58. Kd8 $1 {[%emt 0:00:07]} Rb7 {[%emt 0:00:14]} 59. Ke8 {[%emt 0:00:15]} Ra7 {[%emt 0:00:03]} 60. Kf8 {[%emt 0:00:15]} Rb7 {[%emt 0:00:11]} 61. Kg7 {[%emt 0:00:16]} Ra7 {[%emt 0:00:08]} 62. Kg8 {[%emt 0:00:03]} Rb7 {[%emt 0:00:10]} 63. Kf8 {[%emt 0:00:13]} Ra7 {[%emt 0:00:06]} 64. Ke8 {[%emt 0:00:14]} Rb7 {[%emt 0:00:02]} 65. Re3 {[%emt 0:00:12] [#] and Re7 should not be overlooked} Ra7 $1 {[%emt 0:00:06]} 66. Kf8 {[%emt 0:00:07]} Kc5 {[%emt 0:00:35]} 67. Kg7 {[%emt 0:00:05]} Kc4 {[%emt 0:00:14]} 68. Rh3 {[%emt 0:00:12]} Kc5 {[%emt 0:00:07]} 69. Rg3 {[%emt 0:00:12]} Kc4 {[%emt 0:00:06]} 70. Re3 {[%emt 0:00:07]} Kc5 {[%emt 0:00:07]} 71. Re7 {[%emt 0:00:16]} Rxa3 {[%emt 0:00:02]} 72. Kxf7 {[%emt 0:00:02]} Rf3 {[%emt 0:00:19]} 73. Ke6 {[%emt 0:00:09]} b4 {[%emt 0:00:14]} 74. f7 {[%emt 0:00:03]} b3 {[%emt 0:00:11]} 75. Re8 {[%emt 0:00:06]} Kc4 {[%emt 0:00:11]} 76. f8=Q {[%emt 0:00:07]} Rxf8 {[%emt 0:00:02]} 77. Rxf8 {[%emt 0:00:01]} b2 {[%emt 0:00:02]} 78. Rb8 {[%emt 0:00:01]} Kc3 {[%emt 0:00:00]} 79. Ke5 {[%emt 0:00:02]} Kc2 {[%emt 0:00:01]} 80. Kd4 {[%emt 0:00:01]} b1=Q {[%emt 0:00:02]} 81. Rxb1 {[%emt 0:00:01]} Kxb1 {[%emt 0:00:01] Weighted Error Value: White=0.05 (flawless) /Black=0.03 (flawless) Mistake: 	White=1 	--- Inaccurate: 	White=1 	Black=1 OK: 	White=15 	Black=31 Best: 	White=2 	Black=10 Strong: 	White=3 	Black=5} 1/2-1/2